[Event "*** Titled Tuesday Blitz"]
[Site "Chess.com"]
[Date "2020.04.28"]
[Round "7"]
[White "Filip_Covic"]
[Black "gmelviro"]
[Result "1-0"]
[WhiteElo "2331"]
[BlackElo "2141"]
[TimeControl "180+1"]
[EndTime "11:16:26 PDT"]
[Termination "Filip_Covic won by resignation"]

1. e4 {[%clk 0:03:00.9]} 1... e5 {[%clk 0:02:59.2]} 2. Nc3 {[%clk 0:02:56.9]}
2... Nf6 {[%clk 0:02:57.6]} 3. Bc4 {[%clk 0:02:56.1]} 3... Bc5 {[%clk
0:02:56.2]} 4. d3 {[%clk 0:02:55]} 4... Nc6 {[%clk 0:02:56.1]} 5. f4 {[%clk
0:02:54.2]} 5... d6 {[%clk 0:02:56.5]} 6. f5 {[%clk 0:02:53.8]} 6... Na5 {[%clk
0:02:48.8]} 7. Bg5 {[%clk 0:02:51.1]} 7... Nxc4 {[%clk 0:02:46.6]} 8. dxc4
{[%clk 0:02:50.4]} 8... h6 {[%clk 0:02:40.1]} 9. Bh4 {[%clk 0:02:49.1]} 9... c6
{[%clk 0:02:40.4]} 10. Nf3 {[%clk 0:02:48.8]} 10... a6 {[%clk 0:02:24.3]} 11. a3
{[%clk 0:02:48.2]} 11... Ba7 {[%clk 0:02:23.1]} 12. Qd3 {[%clk 0:02:47.2]} 12...
Qe7 {[%clk 0:02:16.8]} 13. O-O-O {[%clk 0:02:45.9]} 13... Bb8 {[%clk 0:02:17.1]}
14. Kb1 {[%clk 0:02:39.9]} 14... b5 {[%clk 0:02:16.9]} 15. g4 {[%clk 0:02:35.7]}
15... Qb7 {[%clk 0:02:02.4]} 16. Bxf6 {[%clk 0:02:31]} 16... gxf6 {[%clk
0:02:01.9]} 17. h4 {[%clk 0:02:27.6]} 17... Bc7 {[%clk 0:00:54.6]} 18. g5 {[%clk
0:02:24.2]} 18... Rb8 {[%clk 0:00:54.6]} 19. b3 {[%clk 0:02:19.3]} 19... b4
{[%clk 0:00:40.3]} 20. Na4 {[%clk 0:02:09.5]} 20... bxa3 {[%clk 0:00:27.8]} 21.
c5 {[%clk 0:02:09.2]} 21... Qb5 {[%clk 0:00:23.3]} 22. cxd6 {[%clk 0:02:05.4]}
22... Qxd3 {[%clk 0:00:22.9]} 23. Rxd3 {[%clk 0:01:52.5]} 23... Bd8 {[%clk
0:00:22.8]} 24. Nc5 {[%clk 0:01:48.7]} 24... Bd7 {[%clk 0:00:22.9]} 25. gxf6
{[%clk 0:01:43.2]} 25... Bxf6 {[%clk 0:00:22]} 26. Nxa6 {[%clk 0:01:44.1]} 26...
a2+ {[%clk 0:00:20.7]} 27. Kb2 {[%clk 0:01:41.6]} 27... Ra8 {[%clk 0:00:20.1]}
28. Nc7+ {[%clk 0:01:41.1]} 28... Kd8 {[%clk 0:00:19.5]} 29. Nxa8 {[%clk
0:01:42]} 29... Kc8 {[%clk 0:00:19.5]} 30. Nb6+ {[%clk 0:01:41.5]} 1-0

[Event "*** Titled Tuesday Blitz"]
[Site "Chess.com"]
[Date "2020.04.28"]
[Round "7"]
[White "TengisChess"]
[Black "mattcolins2025"]
[Result "1-0"]
[WhiteElo "2537"]
[BlackElo "2285"]
[TimeControl "180+1"]
[EndTime "11:16:33 PDT"]
[Termination "TengisChess won by resignation"]

1. c4 {[%clk 0:03:00.9]} 1... g6 {[%clk 0:02:59.8]} 2. Nf3 {[%clk 0:03:01.8]}
2... Bg7 {[%clk 0:03:00.3]} 3. g3 {[%clk 0:03:02.7]} 3... c5 {[%clk 0:03:00.6]}
4. Bg2 {[%clk 0:03:03.6]} 4... e6 {[%clk 0:03:01.1]} 5. O-O {[%clk 0:03:04.5]}
5... Nc6 {[%clk 0:03:01.1]} 6. Nc3 {[%clk 0:03:05.4]} 6... Nge7 {[%clk
0:03:01.3]} 7. d4 {[%clk 0:03:05.4]} 7... cxd4 {[%clk 0:02:57.4]} 8. Nb5 {[%clk
0:03:05.6]} 8... O-O {[%clk 0:02:57.7]} 9. Nbxd4 {[%clk 0:03:03]} 9... d5 {[%clk
0:02:57.8]} 10. Nxc6 {[%clk 0:02:58.2]} 10... bxc6 {[%clk 0:02:57.5]} 11. Qa4
{[%clk 0:02:55.4]} 11... e5 {[%clk 0:02:46]} 12. Rd1 {[%clk 0:02:52.1]} 12... e4
{[%clk 0:02:40.4]} 13. Nd4 {[%clk 0:02:50.9]} 13... Qc7 {[%clk 0:02:37.9]} 14.
Bf4 {[%clk 0:02:49.3]} 14... Qb7 {[%clk 0:02:31.8]} 15. Bd6 {[%clk 0:02:45.5]}
15... Bxd4 {[%clk 0:02:25.7]} 16. Rxd4 {[%clk 0:02:43.2]} 16... Nf5 {[%clk
0:02:25.6]} 17. Bxf8 {[%clk 0:02:00.3]} 17... Nxd4 {[%clk 0:02:24.6]} 18. Bc5
{[%clk 0:01:57.8]} 18... Nxe2+ {[%clk 0:02:17.5]} 19. Kf1 {[%clk 0:01:52.4]}
19... Qxb2 {[%clk 0:02:17.6]} 20. Re1 {[%clk 0:01:51.9]} 20... Nc3 {[%clk
0:02:12]} 21. Qxc6 {[%clk 0:01:51.2]} 21... Bb7 {[%clk 0:02:10.4]} 22. Qd6
{[%clk 0:01:42.1]} 22... Qxa2 {[%clk 0:02:03.3]} 23. Kg1 {[%clk 0:01:36.3]}
23... Qxc4 {[%clk 0:01:59]} 24. Bf1 {[%clk 0:01:35.5]} 24... Qa4 {[%clk
0:01:53.8]} 25. Qf6 {[%clk 0:01:32.3]} 25... Nb5 {[%clk 0:01:47.3]} 26. Bxb5
{[%clk 0:01:29.9]} 26... Qxb5 {[%clk 0:01:46.8]} 27. Bd4 {[%clk 0:01:30.2]}
27... Kf8 {[%clk 0:01:46.9]} 28. Rc1 {[%clk 0:01:22.1]} 28... Qd7 {[%clk
0:01:24.6]} 29. Qh8+ {[%clk 0:01:13.5]} 29... Ke7 {[%clk 0:01:23.3]} 30. Qe5+
{[%clk 0:01:13.2]} 30... Kf8 {[%clk 0:01:22.2]} 31. Rc7 {[%clk 0:01:12.6]} 31...
Rc8 {[%clk 0:00:45.4]} 32. Rxd7 {[%clk 0:01:09.3]} 1-0

[Event "*** Titled Tuesday Blitz"]
[Site "Chess.com"]
[Date "2020.04.28"]
[Round "7"]
[White "mshuaau0"]
[Black "djano"]
[Result "0-1"]
[WhiteElo "2138"]
[BlackElo "2457"]
[TimeControl "180+1"]
[EndTime "11:16:34 PDT"]
[Termination "djano won by resignation"]

1. e4 {[%clk 0:03:00.9]} 1... e5 {[%clk 0:02:59.7]} 2. Nf3 {[%clk 0:03:00.6]}
2... Nc6 {[%clk 0:03:00]} 3. Bc4 {[%clk 0:02:59.3]} 3... Nf6 {[%clk 0:02:59.4]}
4. d3 {[%clk 0:02:59.4]} 4... h6 {[%clk 0:02:58.7]} 5. Nc3 {[%clk 0:02:57.8]}
5... g6 {[%clk 0:02:58.1]} 6. Be3 {[%clk 0:02:57.2]} 6... Bg7 {[%clk 0:02:57.9]}
7. Qd2 {[%clk 0:02:57.4]} 7... Ng4 {[%clk 0:02:56.4]} 8. O-O-O {[%clk 0:02:55]}
8... d6 {[%clk 0:02:56.3]} 9. h3 {[%clk 0:02:49.9]} 9... Nxe3 {[%clk 0:02:54.8]}
10. fxe3 {[%clk 0:02:49.3]} 10... Na5 {[%clk 0:02:42.9]} 11. Bb3 {[%clk
0:02:49.3]} 11... Nxb3+ {[%clk 0:02:41.3]} 12. axb3 {[%clk 0:02:48.7]} 12... c6
{[%clk 0:02:41.3]} 13. d4 {[%clk 0:02:48.5]} 13... Qc7 {[%clk 0:02:31.5]} 14. g4
{[%clk 0:02:37.2]} 14... Bd7 {[%clk 0:02:30.3]} 15. Qg2 {[%clk 0:02:33.5]} 15...
O-O-O {[%clk 0:02:29.6]} 16. Rhf1 {[%clk 0:02:29.8]} 16... Kb8 {[%clk
0:02:26.6]} 17. Kb1 {[%clk 0:02:28.5]} 17... Bc8 {[%clk 0:02:25.5]} 18. d5
{[%clk 0:02:23.6]} 18... Rhf8 {[%clk 0:02:18.6]} 19. Nd2 {[%clk 0:02:22]} 19...
Bd7 {[%clk 0:02:11.9]} 20. Nc4 {[%clk 0:02:20.6]} 20... c5 {[%clk 0:02:10.1]}
21. Rf2 {[%clk 0:01:54]} 21... f6 {[%clk 0:02:07.4]} 22. h4 {[%clk 0:01:51.4]}
22... b5 {[%clk 0:02:02.7]} 23. Nd2 {[%clk 0:01:50.5]} 23... a6 {[%clk
0:01:59.4]} 24. Rdf1 {[%clk 0:01:49.6]} 24... Qc8 {[%clk 0:01:57.9]} 25. g5
{[%clk 0:01:49.2]} 25... Bh3 {[%clk 0:01:56.5]} 26. Qg3 {[%clk 0:01:47.1]} 26...
Bxf1 {[%clk 0:01:55.1]} 27. Rxf1 {[%clk 0:01:46.8]} 27... fxg5 {[%clk
0:01:53.7]} 28. Rxf8 {[%clk 0:01:46]} 28... Rxf8 {[%clk 0:01:51.8]} 29. hxg5
{[%clk 0:01:46.6]} 29... h5 {[%clk 0:01:52.3]} 30. Qe1 {[%clk 0:01:20.1]} 30...
Qg4 {[%clk 0:01:47.2]} 31. Ka2 {[%clk 0:01:20]} 31... Qg2 {[%clk 0:01:42.8]} 32.
Ncb1 {[%clk 0:01:07.1]} 32... Rf2 {[%clk 0:01:34]} 33. c4 {[%clk 0:01:06.6]}
33... b4 {[%clk 0:01:33.8]} 34. Qd1 {[%clk 0:00:49]} 34... h4 {[%clk 0:01:28.5]}
35. Ka1 {[%clk 0:00:40.7]} 35... h3 {[%clk 0:01:27.8]} 0-1

[Event "*** Titled Tuesday Blitz"]
[Site "Chess.com"]
[Date "2020.04.28"]
[Round "7"]
[White "Quiet_Desperation"]
[Black "MilanJeremic"]
[Result "1-0"]
[WhiteElo "1850"]
[BlackElo "2242"]
[TimeControl "180+1"]
[EndTime "11:16:35 PDT"]
[Termination "Quiet_Desperation won by checkmate"]

1. e4 {[%clk 0:03:00.9]} 1... c6 {[%clk 0:02:59.7]} 2. d4 {[%clk 0:03:00.5]}
2... d5 {[%clk 0:02:59.5]} 3. e5 {[%clk 0:03:01.1]} 3... a6 {[%clk 0:02:58.5]}
4. c4 {[%clk 0:02:52.7]} 4... e6 {[%clk 0:02:52.7]} 5. Nf3 {[%clk 0:02:52.8]}
5... dxc4 {[%clk 0:02:52.6]} 6. Bxc4 {[%clk 0:02:52.5]} 6... Ne7 {[%clk
0:02:51]} 7. Bg5 {[%clk 0:02:50.5]} 7... h6 {[%clk 0:02:49.1]} 8. Bh4 {[%clk
0:02:48.1]} 8... Qb6 {[%clk 0:02:46]} 9. Bb3 {[%clk 0:02:42.8]} 9... Nf5 {[%clk
0:02:44.3]} 10. Bg3 {[%clk 0:02:40.6]} 10... Bb4+ {[%clk 0:02:40.1]} 11. Nc3
{[%clk 0:02:40]} 11... O-O {[%clk 0:02:39.3]} 12. O-O {[%clk 0:02:39]} 12... Rd8
{[%clk 0:02:38.5]} 13. Ne4 {[%clk 0:02:16.6]} 13... Nxd4 {[%clk 0:02:32.6]} 14.
Nxd4 {[%clk 0:02:16]} 14... Qxd4 {[%clk 0:02:29.2]} 15. Qg4 {[%clk 0:02:11.9]}
15... Nd7 {[%clk 0:01:48.9]} 16. Rad1 {[%clk 0:02:07]} 16... Qb6 {[%clk
0:01:48.2]} 17. Nf6+ {[%clk 0:01:32]} 17... Nxf6 {[%clk 0:01:43.4]} 18. exf6
{[%clk 0:01:30.7]} 18... Bf8 {[%clk 0:01:30.8]} 19. fxg7 {[%clk 0:01:28.9]}
19... Be7 {[%clk 0:01:18.5]} 20. Bf4 {[%clk 0:01:07.8]} 20... e5 {[%clk
0:01:12.6]} 21. Qh5 {[%clk 0:01:04.7]} 21... Kxg7 {[%clk 0:00:42.7]} 22. Qxf7+
{[%clk 0:01:00.6]} 22... Kh8 {[%clk 0:00:42.6]} 23. Bxe5+ {[%clk 0:00:52.3]}
23... Bf6 {[%clk 0:00:40.3]} 24. Bxf6# {[%clk 0:00:50.8]} 1-0

[Event "*** Titled Tuesday Blitz"]
[Site "Chess.com"]
[Date "2020.04.28"]
[Round "7"]
[White "bmt011"]
[Black "FROGGY64"]
[Result "0-1"]
[WhiteElo "2058"]
[BlackElo "2453"]
[TimeControl "180+1"]
[EndTime "11:16:37 PDT"]
[Termination "FROGGY64 won by resignation"]

1. d4 {[%clk 0:03:00.9]} 1... e6 {[%clk 0:02:59.4]} 2. Bf4 {[%clk 0:02:56.3]}
2... f5 {[%clk 0:02:56.7]} 3. Nf3 {[%clk 0:02:46]} 3... Nf6 {[%clk 0:02:55.7]}
4. e3 {[%clk 0:02:41]} 4... b6 {[%clk 0:02:55.4]} 5. c4 {[%clk 0:02:35.8]} 5...
Bb7 {[%clk 0:02:53.2]} 6. Nc3 {[%clk 0:02:36.1]} 6... Bb4 {[%clk 0:02:53]} 7.
Bd3 {[%clk 0:02:32.3]} 7... O-O {[%clk 0:02:51.5]} 8. Qc2 {[%clk 0:02:31.7]}
8... Ne4 {[%clk 0:02:49.7]} 9. h3 {[%clk 0:02:26.8]} 9... Bxc3+ {[%clk
0:02:47.7]} 10. bxc3 {[%clk 0:02:26.4]} 10... d6 {[%clk 0:02:47.6]} 11. g4
{[%clk 0:02:21.6]} 11... Nxc3 {[%clk 0:02:39.5]} 12. d5 {[%clk 0:02:13.7]} 12...
Ne4 {[%clk 0:02:13.8]} 13. gxf5 {[%clk 0:02:13.1]} 13... exf5 {[%clk 0:02:13.1]}
14. Bxe4 {[%clk 0:02:04.7]} 14... fxe4 {[%clk 0:02:13.1]} 15. Qxe4 {[%clk
0:02:05]} 15... Nd7 {[%clk 0:02:13.5]} 16. Ng5 {[%clk 0:01:41.3]} 16... Nf6
{[%clk 0:02:12.8]} 17. Qe6+ {[%clk 0:01:40.6]} 17... Kh8 {[%clk 0:02:12.7]} 18.
Nf7+ {[%clk 0:01:41]} 18... Rxf7 {[%clk 0:02:12.3]} 19. Qxf7 {[%clk 0:01:40.5]}
19... Qd7 {[%clk 0:02:01.4]} 20. Qxd7 {[%clk 0:01:36.1]} 20... Nxd7 {[%clk
0:02:01]} 21. Ke2 {[%clk 0:01:31]} 21... Re8 {[%clk 0:02:00.2]} 22. Rhg1 {[%clk
0:01:28.3]} 22... Ba6 {[%clk 0:01:59.5]} 23. Rac1 {[%clk 0:01:25.8]} 23... Nf6
{[%clk 0:01:58.2]} 24. Kf3 {[%clk 0:01:19.6]} 24... Ne4 {[%clk 0:01:55.8]} 25.
a4 {[%clk 0:01:09.9]} 25... Bxc4 {[%clk 0:01:41.2]} 26. Kg2 {[%clk 0:00:53.3]}
26... Bxd5 {[%clk 0:01:40.9]} 27. f3 {[%clk 0:00:51.7]} 27... Nc5 {[%clk
0:01:40.6]} 28. e4 {[%clk 0:00:50.9]} 28... Bb3 {[%clk 0:01:38.5]} 29. a5 {[%clk
0:00:50.3]} 29... Nd3 {[%clk 0:01:38.2]} 30. Rc3 {[%clk 0:00:46.3]} 30... Nxf4+
{[%clk 0:01:37.7]} 31. Kh2 {[%clk 0:00:45.2]} 31... Ne2 {[%clk 0:01:37.9]} 32.
Rxb3 {[%clk 0:00:43.4]} 32... Nxg1 {[%clk 0:01:37.7]} 33. axb6 {[%clk
0:00:42.5]} 33... Nxf3+ {[%clk 0:01:36.3]} 34. Kg3 {[%clk 0:00:38.2]} 34... axb6
{[%clk 0:01:34.1]} 35. Kxf3 {[%clk 0:00:37.2]} 35... Kg8 {[%clk 0:01:34]} 36.
Ra3 {[%clk 0:00:36]} 36... Kf7 {[%clk 0:01:33.1]} 37. Ra7 {[%clk 0:00:36.3]}
37... Re7 {[%clk 0:01:33.3]} 0-1

[Event "*** Titled Tuesday Blitz"]
[Site "Chess.com"]
[Date "2020.04.28"]
[Round "7"]
[White "DanielTitichoca"]
[Black "Shuvalov"]
[Result "1-0"]
[WhiteElo "2337"]
[BlackElo "2447"]
[TimeControl "180+1"]
[EndTime "11:16:38 PDT"]
[Termination "DanielTitichoca won by checkmate"]

1. e4 {[%clk 0:03:00.9]} 1... e6 {[%clk 0:02:59.6]} 2. d3 {[%clk 0:02:58.2]}
2... d5 {[%clk 0:02:59.5]} 3. Nd2 {[%clk 0:02:59.1]} 3... c5 {[%clk 0:02:58.7]}
4. Ngf3 {[%clk 0:02:58.6]} 4... Nc6 {[%clk 0:02:58.8]} 5. g3 {[%clk 0:02:58.3]}
5... Nf6 {[%clk 0:02:59]} 6. Bg2 {[%clk 0:02:57.7]} 6... Be7 {[%clk 0:02:58.2]}
7. O-O {[%clk 0:02:57.1]} 7... O-O {[%clk 0:02:58]} 8. e5 {[%clk 0:02:55.9]}
8... Nd7 {[%clk 0:02:57.7]} 9. Re1 {[%clk 0:02:56.8]} 9... b5 {[%clk 0:02:57]}
10. c4 {[%clk 0:02:50.7]} 10... bxc4 {[%clk 0:02:48.1]} 11. dxc4 {[%clk
0:02:51.6]} 11... Nb6 {[%clk 0:02:47.9]} 12. cxd5 {[%clk 0:02:47.3]} 12... exd5
{[%clk 0:02:47.4]} 13. h4 {[%clk 0:02:44.3]} 13... Bg4 {[%clk 0:02:43.8]} 14.
Nf1 {[%clk 0:02:41.4]} 14... Nd4 {[%clk 0:02:32.7]} 15. N1h2 {[%clk 0:02:38.9]}
15... Nxf3+ {[%clk 0:02:32.1]} 16. Bxf3 {[%clk 0:02:39]} 16... Bxf3 {[%clk
0:02:31.6]} 17. Qxf3 {[%clk 0:02:39.9]} 17... Qd7 {[%clk 0:02:27.5]} 18. Ng4
{[%clk 0:02:37.3]} 18... Qe6 {[%clk 0:02:22.3]} 19. Bg5 {[%clk 0:02:33.2]} 19...
Bxg5 {[%clk 0:02:10.5]} 20. hxg5 {[%clk 0:02:34.1]} 20... Nc4 {[%clk 0:02:10.5]}
21. Kg2 {[%clk 0:02:26.2]} 21... Nd2 {[%clk 0:02:04.1]} 22. Qf4 {[%clk
0:02:19.6]} 22... Ne4 {[%clk 0:02:01.7]} 23. Rh1 {[%clk 0:02:17.7]} 23... c4
{[%clk 0:01:55]} 24. Rh5 {[%clk 0:02:14.8]} 24... Rab8 {[%clk 0:01:41]} 25. Rah1
{[%clk 0:02:11.1]} 25... Qg6 {[%clk 0:01:41.2]} 26. Rxh7 {[%clk 0:01:51.6]}
26... Qxh7 {[%clk 0:01:41.4]} 27. Rxh7 {[%clk 0:01:52.2]} 27... Kxh7 {[%clk
0:01:42.3]} 28. Nf6+ {[%clk 0:01:39.3]} 28... gxf6 {[%clk 0:00:55.6]} 29. Qh4+
{[%clk 0:01:26.9]} 29... Kg8 {[%clk 0:00:51]} 30. gxf6 {[%clk 0:01:23.3]} 30...
Rfd8 {[%clk 0:00:39.9]} 31. Qh6 {[%clk 0:01:21]} 31... Rxb2 {[%clk 0:00:29.2]}
32. Qg7# {[%clk 0:01:19.7]} 1-0

[Event "*** Titled Tuesday Blitz"]
[Site "Chess.com"]
[Date "2020.04.28"]
[Round "7"]
[White "AniJak"]
[Black "FrogMist"]
[Result "1-0"]
[WhiteElo "2267"]
[BlackElo "2385"]
[TimeControl "180+1"]
[EndTime "11:16:43 PDT"]
[Termination "AniJak won by checkmate"]

1. e4 {[%clk 0:03:00.9]} 1... e5 {[%clk 0:02:52.2]} 2. Nc3 {[%clk 0:02:59.3]}
2... Nf6 {[%clk 0:02:51.8]} 3. g3 {[%clk 0:02:59.2]} 3... d5 {[%clk 0:02:51.5]}
4. exd5 {[%clk 0:02:59]} 4... Nxd5 {[%clk 0:02:52.4]} 5. Bg2 {[%clk 0:02:59.4]}
5... Nxc3 {[%clk 0:02:52.3]} 6. bxc3 {[%clk 0:03:00.3]} 6... Nc6 {[%clk
0:02:52.9]} 7. Rb1 {[%clk 0:02:59.9]} 7... Bc5 {[%clk 0:02:52.5]} 8. Ne2 {[%clk
0:02:59.5]} 8... Bb6 {[%clk 0:02:52.7]} 9. O-O {[%clk 0:02:58.6]} 9... O-O
{[%clk 0:02:53.3]} 10. d3 {[%clk 0:02:58.7]} 10... Bg4 {[%clk 0:02:51.7]} 11.
Kh1 {[%clk 0:02:58.1]} 11... Qf6 {[%clk 0:02:47.3]} 12. h3 {[%clk 0:02:53.6]}
12... Bf3 {[%clk 0:02:45.5]} 13. Kh2 {[%clk 0:02:46.7]} 13... Rad8 {[%clk
0:02:39]} 14. Bg5 {[%clk 0:02:30.1]} 14... Qxg5 {[%clk 0:02:24.6]} 15. Bxf3
{[%clk 0:02:29.4]} 15... f5 {[%clk 0:02:24.9]} 16. Bxc6 {[%clk 0:01:58.2]} 16...
bxc6 {[%clk 0:02:25.7]} 17. f4 {[%clk 0:01:58.1]} 17... Qe7 {[%clk 0:02:09.1]}
18. fxe5 {[%clk 0:01:56.4]} 18... Qxe5 {[%clk 0:02:09.9]} 19. Nf4 {[%clk
0:01:55.3]} 19... Qxc3 {[%clk 0:02:08.7]} 20. Ne6 {[%clk 0:01:50.2]} 20... f4
{[%clk 0:02:01.9]} 21. gxf4 {[%clk 0:01:41]} 21... Qf6 {[%clk 0:01:42.9]} 22.
Nxd8 {[%clk 0:01:38.5]} 22... Qxd8 {[%clk 0:01:43.7]} 23. Qg4 {[%clk 0:01:36.3]}
23... c5 {[%clk 0:01:38.9]} 24. Rbe1 {[%clk 0:01:34.3]} 24... c4 {[%clk
0:01:38.7]} 25. Qe6+ {[%clk 0:01:34]} 25... Kh8 {[%clk 0:01:37.9]} 26. Qxc4
{[%clk 0:01:34.5]} 26... h6 {[%clk 0:01:34.2]} 27. f5 {[%clk 0:01:32.7]} 27...
c5 {[%clk 0:01:31.3]} 28. Qe4 {[%clk 0:01:30.9]} 28... Qf6 {[%clk 0:01:20.6]}
29. Kh1 {[%clk 0:01:26]} 29... Qc3 {[%clk 0:01:16.9]} 30. Re2 {[%clk 0:01:18]}
30... Rd8 {[%clk 0:01:10.3]} 31. Rg2 {[%clk 0:01:17]} 31... Qf6 {[%clk
0:01:07.5]} 32. Rg6 {[%clk 0:01:13.8]} 32... Qc3 {[%clk 0:01:05]} 33. f6 {[%clk
0:01:12]} 33... Qxc2 {[%clk 0:00:53.5]} 34. fxg7+ {[%clk 0:01:09.4]} 34... Kg8
{[%clk 0:00:53.3]} 35. Qe6+ {[%clk 0:01:05.5]} 35... Kh7 {[%clk 0:00:53.4]} 36.
Rxh6+ {[%clk 0:01:05.2]} 36... Kxg7 {[%clk 0:00:52.6]} 37. Qg6# {[%clk
0:01:02.3]} 1-0

[Event "*** Titled Tuesday Blitz"]
[Site "Chess.com"]
[Date "2020.04.28"]
[Round "7"]
[White "DrVitman"]
[Black "hongnhung1234"]
[Result "0-1"]
[WhiteElo "2512"]
[BlackElo "2217"]
[TimeControl "180+1"]
[EndTime "11:16:50 PDT"]
[Termination "hongnhung1234 won on time"]

1. e4 {[%clk 0:03:00.9]} 1... c5 {[%clk 0:02:59.4]} 2. Nc3 {[%clk 0:03:00.9]}
2... Nc6 {[%clk 0:02:58.6]} 3. Bb5 {[%clk 0:03:00.5]} 3... g6 {[%clk 0:02:55.8]}
4. Bxc6 {[%clk 0:02:59.1]} 4... bxc6 {[%clk 0:02:56.7]} 5. Nge2 {[%clk
0:02:53.5]} 5... Bg7 {[%clk 0:02:56.1]} 6. O-O {[%clk 0:02:53.7]} 6... d6 {[%clk
0:02:51.9]} 7. d3 {[%clk 0:02:50.8]} 7... Nf6 {[%clk 0:02:52]} 8. Be3 {[%clk
0:02:45.3]} 8... O-O {[%clk 0:02:51.1]} 9. Qd2 {[%clk 0:02:33.1]} 9... Re8
{[%clk 0:02:49.1]} 10. Rae1 {[%clk 0:02:22.7]} 10... d5 {[%clk 0:02:47.9]} 11.
Bxc5 {[%clk 0:02:11.3]} 11... dxe4 {[%clk 0:02:44.3]} 12. Nc1 {[%clk 0:02:02.1]}
12... exd3 {[%clk 0:02:42.7]} 13. Nxd3 {[%clk 0:02:03]} 13... Ba6 {[%clk
0:02:36.5]} 14. Re3 {[%clk 0:01:55.4]} 14... Qc7 {[%clk 0:02:33.2]} 15. Rfe1
{[%clk 0:01:49.2]} 15... Bh6 {[%clk 0:02:14.9]} 16. f4 {[%clk 0:01:18.7]} 16...
Bxd3 {[%clk 0:02:03.1]} 17. Qxd3 {[%clk 0:01:16.5]} 17... Rad8 {[%clk
0:01:59.3]} 18. Qc4 {[%clk 0:00:40.1]} 18... Qxf4 {[%clk 0:01:58.1]} 19. Qxf4
{[%clk 0:00:32.2]} 19... Bxf4 {[%clk 0:01:59]} 20. Rxe7 {[%clk 0:00:30.7]} 20...
Rxe7 {[%clk 0:01:56.3]} 21. Rxe7 {[%clk 0:00:22.9]} 21... Nd7 {[%clk 0:01:32.1]}
22. g3 {[%clk 0:00:15.8]} 22... Bg5 {[%clk 0:01:28.2]} 23. Re2 {[%clk
0:00:14.6]} 23... Nxc5 {[%clk 0:01:27.9]} 0-1

[Event "*** Titled Tuesday Blitz"]
[Site "Chess.com"]
[Date "2020.04.28"]
[Round "7"]
[White "olomi007"]
[Black "Aleksandar-Topalov"]
[Result "1-0"]
[WhiteElo "2662"]
[BlackElo "2497"]
[TimeControl "180+1"]
[EndTime "11:16:53 PDT"]
[Termination "olomi007 won by resignation"]

1. e4 {[%clk 0:03:00.9]} 1... e6 {[%clk 0:02:59.8]} 2. d4 {[%clk 0:03:00.7]}
2... d5 {[%clk 0:02:59.4]} 3. Nd2 {[%clk 0:03:01.2]} 3... Nf6 {[%clk 0:02:59]}
4. e5 {[%clk 0:03:01.1]} 4... Ng8 {[%clk 0:02:59.2]} 5. Bd3 {[%clk 0:02:58.9]}
5... Ne7 {[%clk 0:02:59.4]} 6. Ngf3 {[%clk 0:02:58]} 6... Qd7 {[%clk 0:02:58.4]}
7. O-O {[%clk 0:02:57.4]} 7... b6 {[%clk 0:02:58.8]} 8. Re1 {[%clk 0:02:53.7]}
8... Ba6 {[%clk 0:02:58.3]} 9. Bxa6 {[%clk 0:02:52.7]} 9... Nxa6 {[%clk
0:02:58]} 10. Nf1 {[%clk 0:02:49.9]} 10... Nf5 {[%clk 0:02:53.8]} 11. g4 {[%clk
0:02:48.1]} 11... Ne7 {[%clk 0:02:53.9]} 12. Ne3 {[%clk 0:02:47.5]} 12... h5
{[%clk 0:02:52.3]} 13. h3 {[%clk 0:02:47.6]} 13... Ng6 {[%clk 0:02:50.7]} 14.
Ng2 {[%clk 0:02:33.5]} 14... Be7 {[%clk 0:02:48.2]} 15. Bg5 {[%clk 0:02:29.4]}
15... c5 {[%clk 0:02:41.4]} 16. c3 {[%clk 0:02:25.5]} 16... Nb8 {[%clk
0:02:41.4]} 17. Qd2 {[%clk 0:02:17.5]} 17... Nc6 {[%clk 0:02:40.7]} 18. Nf4
{[%clk 0:02:09.9]} 18... Nxf4 {[%clk 0:02:36.9]} 19. Qxf4 {[%clk 0:02:09.2]}
19... hxg4 {[%clk 0:02:32.2]} 20. hxg4 {[%clk 0:02:08.2]} 20... O-O-O {[%clk
0:02:30.6]} 21. Kg2 {[%clk 0:02:08.4]} 21... Rdf8 {[%clk 0:02:12.3]} 22. Bxe7
{[%clk 0:02:06.1]} 22... Nxe7 {[%clk 0:02:03.6]} 23. dxc5 {[%clk 0:02:00.9]}
23... bxc5 {[%clk 0:02:03.2]} 24. b4 {[%clk 0:02:01.5]} 24... Ng6 {[%clk
0:01:58.4]} 25. Qe3 {[%clk 0:02:01]} 25... c4 {[%clk 0:01:48.6]} 26. Rh1 {[%clk
0:01:57.5]} 26... Qc7 {[%clk 0:01:45.3]} 27. a4 {[%clk 0:01:56.2]} 27... Kb8
{[%clk 0:01:36.8]} 28. Rh5 {[%clk 0:01:52]} 28... Qb6 {[%clk 0:01:24.6]} 29. Nd4
{[%clk 0:01:50.1]} 29... Rxh5 {[%clk 0:01:15.5]} 30. gxh5 {[%clk 0:01:48.5]}
30... Ne7 {[%clk 0:01:16]} 31. Qg5 {[%clk 0:01:43.1]} 31... Re8 {[%clk
0:01:07.7]} 32. Kf1 {[%clk 0:01:36.2]} 32... Nc6 {[%clk 0:00:56.1]} 33. Rd1
{[%clk 0:01:29.7]} 33... Nxd4 {[%clk 0:00:52.3]} 34. Rxd4 {[%clk 0:01:29.2]}
34... Qc7 {[%clk 0:00:50]} 35. Qxg7 {[%clk 0:01:28]} 35... Qe7 {[%clk
0:00:50.1]} 36. h6 {[%clk 0:01:26.4]} 36... Qf8 {[%clk 0:00:50.4]} 37. Rf4
{[%clk 0:01:17.6]} 1-0